bitfinex/quotes_BTCUSD_20240815
["timestamp","ask_amount","ask_price","bid_price","bid_amount"]
[1723719594586,1.17473202,58450.0,58449.0,0.14628505]
[1723719597793,1.8600131,58450.0,58449.0,0.06978505]
[1723719598005,1.8600131,58450.0,58449.0,0.00898505]
[1723719598006,2.1558764,58450.0,58449.0,0.00898505]
[1723719598153,2.53870142,58450.0,58449.0,0.00898505]
[1723719598362,2.43923578,58450.0,58449.0,0.00898505]
[1723719599664,2.78140778,58450.0,58449.0,0.00898505]
[1723719600580,2.88140778,58450.0,58449.0,0.00898505]
[1723719600824,1.70684713,58450.0,58449.0,0.06978505]
[1723719601025,1.36431008,58450.0,58449.0,0.06978505]
[1723719601198,0.82983267,58450.0,58449.0,0.06978505]
[1723719601400,1.17200467,58450.0,58449.0,0.06978505]
[1723719601615,0.82983267,58450.0,58449.0,0.06978505]
[1723719601808,0.84952053,58450.0,58449.0,0.15048505]
[1723719602452,0.48766067,58450.0,58449.0,0.15048505]
[1723719602653,0.3259905,58450.0,58449.0,0.15048505]
[1723719603006,0.62521707,58450.0,58449.0,0.15048505]
[1723719603206,0.62521707,58450.0,58449.0,0.83484105]
[1723719603207,0.45413142,58450.0,58449.0,0.83484105]
[1723719603430,0.02641618,58450.0,58449.0,1.51966259]
[1723719603654,0.05126219,58463.0,58456.0,0.655005]
[1723719603835,0.12896357,58467.0,58456.0,1.63033354]
[1723719603836,0.000823,58467.0,58456.0,1.63033354]
[1723719604012,0.000823,58467.0,58456.0,1.80633354]
[1723719604229,0.000823,58467.0,58456.0,2.32599913]
[1723719604407,0.000823,58467.0,58456.0,2.14847054]
[1723719604768,0.000823,58467.0,58456.0,1.86309469]
[1723719605769,0.001823,58457.0,58456.0,1.51083354]
[1723719606419,0.001823,58457.0,58456.0,0.1418]
[1723719606572,0.172888,58457.0,58456.0,0.1418]
[1723719606775,0.515019,58457.0,58456.0,0.1418]
[1723719606979,0.52443705,58457.0,58456.0,0.1418]
[1723719607177,0.52543705,58457.0,58456.0,0.1488]
[1723719607582,0.52443705,58457.0,58456.0,0.1418]
[1723719607919,0.17108,58452.0,58451.0,0.1433]
[1723719608125,0.513241,58452.0,58451.0,0.0636]
[1723719608327,0.855402,58452.0,58451.0,0.0636]
[1723719608528,0.513241,58452.0,58451.0,0.0636]
[1723719608730,0.513241,58452.0,58449.0,0.07548505]
[1723719608731,0.17108,58452.0,58449.0,0.07548505]
[1723719609150,0.171083,58451.0,58449.0,0.07548505]
[1723719609948,0.001,58452.0,58451.0,0.171083]
[1723719610168,0.001,58452.0,58451.0,0.657949]
[1723719610454,0.002,58452.0,58451.0,1.011115]
[1723719610671,0.001,58452.0,58451.0,1.000115]
[1723719611151,0.001,58452.0,58451.0,1.342281]
[1723719611343,0.000823,58457.0,58456.0,0.661305]
[1723719611545,0.000823,58457.0,58456.0,1.003442]
[1723719612838,0.000823,58457.0,58456.0,1.345579]
[1723719613491,0.001823,58457.0,58456.0,1.350579]
[1723719613673,0.000823,58457.0,58456.0,1.345579]
[1723719614072,0.001823,58457.0,58456.0,1.352579]
[1723719614216,0.000823,58457.0,58456.0,1.345579]
[1723719614577,0.000823,58457.0,58456.0,1.352579]
[1723719614578,0.00076852,58457.0,58456.0,1.352579]
[1723719614778,0.00276852,58457.0,58456.0,1.359579]
[1723719615196,0.00176852,58457.0,58456.0,1.352579]
[1723719615556,0.00276852,58457.0,58456.0,1.359579]
[1723719618163,0.00276852,58457.0,58456.0,1.36941998]
[1723719624282,0.00276852,58457.0,58456.0,1.37188978]
[1723719625411,0.00276852,58457.0,58456.0,1.54544432]
[1723719625619,0.00276852,58457.0,58456.0,1.88758132]
[1723719626507,0.00276852,58457.0,58456.0,1.98758132]
[1723719626707,0.00276852,58457.0,58456.0,2.32971832]
[1723719627033,0.00176852,58457.0,58456.0,2.32271832]
[1723719627256,0.00076852,58457.0,58456.0,2.31571832]
[1723719627696,0.00076852,58457.0,58456.0,2.33671832]
[1723719627697,0.00276852,58457.0,58456.0,2.33671832]
[1723719628002,0.00176852,58457.0,58456.0,2.32971832]
[1723719628206,0.00076852,58457.0,58456.0,2.31571832]
[1723719628544,0.00276852,58457.0,58456.0,2.33671832]
[1723719629309,0.00276852,58457.0,58456.0,2.51422831]
[1723719629537,0.00276852,58457.0,58456.0,2.54722831]
[1723719629740,0.00276852,58457.0,58456.0,2.53722831]
[1723719631270,0.00276852,58457.0,58456.0,2.35971832]
[1723719631472,0.00276852,58457.0,58456.0,2.5372274]
[1723719632878,0.00276852,58457.0,58456.0,2.3661594]
[1723719633082,0.00276852,58457.0,58456.0,2.5372274]
[1723719633284,0.00276852,58457.0,58456.0,2.53722789]
[1723719633487,0.00276852,58457.0,58456.0,2.53813319]
[1723719633687,0.00276852,58457.0,58456.0,2.89027019]
[1723719633688,5.2e-07,58457.0,58456.0,2.89027019]
[1723719633906,5.2e-07,58461.0,58460.0,1.883627]
[1723719634104,5.2e-07,58461.0,58460.0,2.83848827]
[1723719634537,5.2e-07,58461.0,58460.0,3.18060227]
[1723719635080,5.2e-07,58461.0,58460.0,3.0130927]
[1723719635244,5.2e-07,58461.0,58460.0,3.19457575]
[1723719635413,5.2e-07,58461.0,58460.0,2.7235927]
[1723719635612,5.2e-07,58461.0,58460.0,2.90107551]
[1723719635821,5.2e-07,58461.0,58460.0,2.91507551]
[1723719637202,5.2e-07,58461.0,58460.0,2.92527893]
[1723719638166,5.2e-07,58461.0,58460.0,2.58316493]
[1723719638929,5.2e-07,58461.0,58460.0,0.89572216]
[1723719639132,5.2e-07,58461.0,58460.0,0.38255116]
[1723719639369,5.2e-07,58461.0,58460.0,0.55360816]
[1723719639581,5.2e-07,58461.0,58460.0,0.04043716]
[1723719639784,0.08270052,58461.0,58460.0,0.04043716]
[1723719639997,0.59586252,58461.0,58460.0,0.02643716]
[1723719640207,0.171065,58457.0,58456.0,0.0009053]
[1723719640395,0.60191555,58457.0,58456.0,0.0009053]
[1723719640585,1.47470109,58457.0,58456.0,0.0009053]
[1723719640720,2.28196309,58457.0,58456.0,0.0009053]
[1723719640927,2.28196309,58457.0,58440.0,0.009053]
[1723719640928,1.342502,58450.0,58440.0,0.009053]
[1723719641126,1.96564809,58450.0,58440.0,0.009053]
[1723719641332,1.98864809,58450.0,58440.0,0.009053]
[1723719641755,1.62347609,58450.0,58440.0,0.009053]
[1723719642225,1.62347459,58450.0,58440.0,0.009053]
[1723719643028,1.67449149,58450.0,58440.0,0.009053]
[1723719643328,1.62347459,58450.0,58440.0,0.009053]
[1723719643535,1.62347459,58450.0,58449.0,0.00998505]
[1723719644011,1.62347459,58450.0,58449.0,0.00898505]
[1723719644205,1.62347459,58450.0,58449.0,0.01098505]
[1723719644541,1.62347459,58450.0,58449.0,0.00898505]
[1723719644973,1.62347459,58450.0,58449.0,0.01098505]
[1723719645315,1.67447601,58450.0,58449.0,0.00998505]
[1723719645453,1.69747601,58450.0,58449.0,0.01098505]
[1723719645851,1.697036,58450.0,58449.0,0.01098505]
[1723719646249,2.039208,58450.0,58449.0,0.01098505]
[1723719646452,2.0391778,58450.0,58449.0,0.00998505]
[1723719646657,2.0391778,58450.0,58449.0,0.01098505]
[1723719646864,2.21073234,58450.0,58449.0,0.01098505]
[1723719647094,2.21073234,58450.0,58440.0,0.009053]
[1723719647095,1.343687,58441.0,58440.0,0.009053]
[1723719647290,1.52465959,58441.0,58440.0,0.009053]
[1723719648573,1.52465674,58441.0,58440.0,0.009053]
[1723719648942,1.51524154,58441.0,58440.0,0.009053]
[1723719650311,0.001,58441.0,58440.0,0.010053]
[1723719650510,0.001,58441.0,58440.0,0.182168]
[1723719650719,0.001,58441.0,58440.0,0.02156418]
[1723719650925,0.171104,58444.0,58440.0,0.02056418]
[1723719651126,0.171107,58443.0,58440.0,0.02056418]
[1723719651337,0.0808,58445.0,58440.0,0.02056418]
[1723719651338,0.001,58441.0,58440.0,0.02056418]
[1723719651539,0.172112,58441.0,58440.0,0.02056418]
[1723719652023,0.0808,58445.0,58440.0,0.02056418]
[1723719652244,0.271088,58450.0,58440.0,0.02056418]
[1723719652445,0.171087,58450.0,58446.0,0.171097]
[1723719652690,0.171088,58450.0,58446.0,0.171097]
[1723719652892,0.342175,58450.0,58447.0,0.01067843]
[1723719653106,0.342175,58450.0,58444.0,0.171102]
[1723719653271,0.171094,58448.0,58444.0,0.171102]
[1723719653474,0.171094,58448.0,58440.0,0.010053]
[1723719653475,0.0822,58456.0,58445.0,0.09646387]
[1723719653675,0.253271,58456.0,58452.0,0.171079]
[1723719653898,0.171075,58454.0,58450.0,0.171084]
[1723719654087,0.171075,58454.0,58453.0,0.01065392]
[1723719654308,0.0822,58456.0,58451.0,0.171083]
[1723719654309,0.171071,58455.0,58451.0,0.171083]
[1723719654513,0.253268,58456.0,58453.0,0.01065392]
[1723719654718,0.000823,58457.0,58454.0,0.01064984]
[1723719654959,0.001,58456.0,58455.0,0.171071]
[1723719655290,0.001,58456.0,58455.0,0.18171676]
[1723719655697,0.001,58456.0,58455.0,0.52385976]
[1723719656084,0.000823,58457.0,58456.0,0.513205]
[1723719656291,0.000823,58457.0,58456.0,0.855342]
[1723719656499,0.000823,58457.0,58456.0,0.86598367]
[1723719657148,0.000823,58457.0,58456.0,1.37967521]
[1723719657364,0.000823,58457.0,58456.0,1.86871221]
[1723719658390,0.000823,58457.0,58456.0,1.87471221]
[1723719658732,0.000823,58457.0,58456.0,1.88871221]
[1723719658933,0.000823,58457.0,58456.0,1.86871221]
[1723719659147,0.000823,58457.0,58456.0,1.88271221]
[1723719659367,0.000823,58457.0,58456.0,1.89671221]
[1723719659585,0.000823,58457.0,58456.0,1.88271221]
[1723719661244,0.000823,58457.0,58456.0,1.89671221]
[1723719661479,0.000823,58457.0,58456.0,1.86871221]
[1723719661882,0.000823,58457.0,58456.0,1.87071221]
[1723719662234,0.000823,58457.0,58456.0,1.89871221]
[1723719662390,0.000823,58457.0,58456.0,1.88471221]
[1723719662750,0.000823,58457.0,58456.0,2.22684921]
[1723719662955,0.000823,58457.0,58456.0,2.34584921]
[1723719663196,1e-06,58457.0,58456.0,2.74224621]
[1723719663398,1e-06,58457.0,58456.0,2.72224621]
[1723719663831,1e-06,58457.0,58456.0,2.73233849]
[1723719664059,1e-06,58457.0,58456.0,2.74633849]
[1723719664472,1e-06,58457.0,58456.0,2.73233849]
[1723719664948,1e-06,58457.0,58456.0,2.74633849]
[1723719665155,1e-06,58457.0,58456.0,2.75033849]
[1723719665370,1e-06,58457.0,58456.0,2.40820149]
[1723719665559,1e-06,58457.0,58456.0,2.39420149]
[1723719665759,1e-06,58457.0,58456.0,2.40820149]
[1723719665968,1e-06,58457.0,58456.0,2.77500149]
[1723719666122,1e-06,58457.0,58456.0,2.37560449]
[1723719666336,1e-06,58457.0,58456.0,2.36551221]
[1723719666625,1e-06,58457.0,58456.0,1.99871221]
[1723719667782,1e-06,58457.0,58456.0,1.99671221]
[1723719667950,1e-06,58457.0,58456.0,1.55457521]
[1723719668155,1e-06,58457.0,58456.0,1.65457521]
[1723719668919,1e-06,58457.0,58456.0,2.36551221]
[1723719669130,1e-06,58457.0,58456.0,2.38851221]
[1723719670870,1e-06,58457.0,58456.0,2.39863787]
[1723719672319,1e-06,58457.0,58456.0,2.74077487]
[1723719672505,1e-06,58457.0,58456.0,2.39863787]
[1723719674117,1e-06,58457.0,58456.0,2.39663787]
[1723719674324,1e-06,58457.0,58456.0,1.99671221]
[1723719675539,1e-06,58457.0,58456.0,2.36351221]
[1723719676113,1e-06,58457.0,58456.0,2.36551221]
[1723719676724,1e-06,58457.0,58456.0,2.38851221]
[1723719676929,1e-06,58457.0,58456.0,2.39851221]
[1723719677368,1e-06,58457.0,58456.0,2.77490921]
[1723719677553,1e-06,58457.0,58456.0,2.76490921]
[1723719678164,1e-06,58457.0,58456.0,2.38851221]
[1723719679685,1e-06,58457.0,58456.0,2.43277221]
[1723719679951,1e-06,58457.0,58456.0,2.95240599]
[1723719680927,1e-06,58457.0,58456.0,2.94240599]
[1723719681149,1e-06,58457.0,58456.0,2.94240246]
[1723719683506,1e-06,58457.0,58456.0,2.60026546]
[1723719684298,1e-06,58457.0,58456.0,2.94240246]
[1723719684778,1e-06,58457.0,58456.0,2.94241179]
[1723719684983,1e-06,58457.0,58456.0,2.77777737]
[1723719686101,1e-06,58457.0,58456.0,2.70447737]
[1723719687934,1e-06,58457.0,58456.0,2.52697479]
[1723719688984,1e-06,58457.0,58456.0,2.53697479]
[1723719689188,1e-06,58457.0,58456.0,2.86911179]
[1723719689405,1e-06,58457.0,58456.0,2.87911179]
[1723719689828,1e-06,58457.0,58456.0,2.86911179]
[1723719690495,1e-06,58457.0,58456.0,2.86901179]
[1723719692057,1e-06,58457.0,58456.0,2.69150921]
[1723719692259,1e-06,58457.0,58456.0,3.04650841]
[1723719695429,1e-06,58457.0,58456.0,3.04741371]
[1723719696222,1e-06,58457.0,58456.0,2.86991411]
[1723719696413,1e-06,58457.0,58456.0,3.04741371]
[1723719697524,1e-06,58457.0,58456.0,3.099903]
[1723719697876,1e-06,58457.0,58456.0,2.9224034]
[1723719698236,1e-06,58457.0,58456.0,2.86991411]
[1723719698453,1e-06,58457.0,58456.0,2.92240498]
[1723719698818,1e-06,58457.0,58456.0,2.86991411]
[1723719699204,1e-06,58457.0,58456.0,2.92241327]
[1723719699403,1e-06,58457.0,58456.0,2.74491367]
[1723719699639,1e-06,58457.0,58456.0,2.97344463]
[1723719699820,1e-06,58457.0,58456.0,2.9735538]
[1723719700366,1e-06,58457.0,58456.0,2.97355379]
[1723719700583,1e-06,58457.0,58456.0,3.04596091]
[1723719701483,1e-06,58457.0,58456.0,3.07153209]
[1723719702431,1e-06,58457.0,58456.0,3.09710326]
[1723719703056,1e-06,58457.0,58456.0,2.96924739]
[1723719703284,1e-06,58457.0,58456.0,2.91674823]
[1723719703484,1e-06,58457.0,58456.0,3.09709726]
[1723719703693,1e-06,58457.0,58456.0,2.96924139]
[1723719704404,1e-06,58457.0,58456.0,2.54420439]
[1723719704607,1e-06,58457.0,58456.0,2.4391806]
[1723719704781,1e-06,58457.0,58456.0,2.88377233]
[1723719705168,1e-06,58457.0,58456.0,2.96517233]
[1723719705372,1e-06,58457.0,58456.0,3.15394056]
[1723719706397,1e-06,58457.0,58456.0,3.10546823]
[1723719708855,1e-06,58457.0,58456.0,3.10546958]
[1723719709055,1e-06,58457.0,58456.0,2.97737613]
[1723719710724,1e-06,58457.0,58456.0,2.97737711]
[1723719714303,1e-06,58457.0,58456.0,2.97737657]
[1723719714504,1e-06,58457.0,58456.0,2.9773761]
[1723719715527,1e-06,58457.0,58456.0,2.9733761]
[1723719716144,1e-06,58457.0,58456.0,2.8337761]
[1723719716554,1e-06,58457.0,58456.0,2.4916391]
[1723719717358,1e-06,58457.0,58456.0,2.8337761]
[1723719717563,1e-06,58457.0,58456.0,2.49163917]
[1723719718441,1e-06,58457.0,58456.0,2.31414136]
[1723719718635,1e-06,58457.0,58456.0,2.49163917]
[1723719719819,1e-06,58457.0,58456.0,3.00841536]
[1723719720017,0.000823,58467.0,58456.0,3.00841536]
[1723719720018,0.0786,58466.0,58465.0,1.539382]
[1723719720178,0.0786,58466.0,58465.0,2.36750785]
[1723719720367,0.0786,58466.0,58465.0,2.36345011]
[1723719720957,0.0786,58466.0,58465.0,2.36343449]
[1723719721107,0.0786,58466.0,58465.0,2.36342574]
[1723719721305,0.0786,58466.0,58465.0,2.28917707]
[1723719721505,0.0786,58466.0,58465.0,2.30317707]
[1723719722084,0.0786,58466.0,58465.0,2.31717707]
[1723719723305,0.0786,58466.0,58465.0,2.36842159]
[1723719723511,0.0786,58466.0,58465.0,2.31717707]
[1723719723874,0.0786,58466.0,58465.0,2.32747027]
[1723719724485,0.0786,58466.0,58465.0,2.37871479]
[1723719724635,0.0786,58466.0,58465.0,2.3787186]
[1723719724853,0.0786,58466.0,58465.0,2.20122573]
[1723719725035,0.0786,58466.0,58465.0,2.37871885]
[1723719725444,0.0786,58466.0,58465.0,2.32747433]
[1723719725711,0.0786,58466.0,58465.0,2.37871885]
[1723719726822,0.0786,58466.0,58465.0,2.32747433]
[1723719727034,0.000823,58467.0,58466.0,1.604655]
[1723719727201,1e-06,58467.0,58466.0,2.8344361]
[1723719727384,1e-06,58467.0,58466.0,3.12665881]
[1723719727580,1e-06,58467.0,58466.0,3.46174808]
[1723719727789,1e-06,58467.0,58466.0,3.0846655]
[1723719728032,1e-06,58467.0,58466.0,3.0081655]
[1723719728219,1e-06,58467.0,58466.0,3.0081429]
[1723719729047,1e-06,58467.0,58466.0,3.0361429]
[1723719729255,1e-06,58467.0,58466.0,3.15012538]
[1723719729470,1e-06,58467.0,58466.0,3.08370084]
[1723719729688,1e-06,58467.0,58466.0,3.09770084]
[1723719730831,1e-06,58467.0,58466.0,3.11170084]
[1723719731231,1e-06,58467.0,58466.0,2.98371836]
[1723719731850,1e-06,58467.0,58466.0,2.80624784]
[1723719732073,1e-06,58467.0,58466.0,2.98371886]
[1723719732484,1e-06,58467.0,58466.0,3.06041886]
[1723719732676,1e-06,58467.0,58466.0,3.11285623]
[1723719733693,1e-06,58467.0,58466.0,3.09885623]
[1723719734096,1e-06,58467.0,58466.0,3.12285623]
[1723719734497,1e-06,58467.0,58466.0,3.09885623]
[1723719734937,1e-06,58467.0,58466.0,3.11285623]
[1723719735284,1e-06,58467.0,58466.0,3.09885623]
[1723719735484,1e-06,58467.0,58466.0,2.90738521]
[1723719735735,1e-06,58467.0,58466.0,3.11284661]
[1723719736300,1e-06,58467.0,58466.0,3.06040924]
[1723719738029,1e-06,58467.0,58466.0,3.18826133]
[1723719738497,1e-06,58467.0,58466.0,3.11156133]
[1723719738634,1e-06,58467.0,58466.0,2.93490732]
[1723719739234,1e-06,58467.0,58466.0,2.83263197]
[1723719741162,1e-06,58467.0,58466.0,2.97133197]
[1723719741539,1e-06,58467.0,58466.0,3.09918406]
[1723719741742,0.000823,58483.0,58479.0,0.173001]
[1723719741743,0.0784,58480.0,58479.0,0.173001]
[1723719741946,0.000823,58483.0,58482.0,0.172992]
[1723719742154,0.000823,58483.0,58482.0,1.13192914]
[1723719742499,0.000823,58483.0,58482.0,2.45098086]
[1723719742611,0.000823,58483.0,58482.0,2.5345182]
[1723719742825,0.000823,58483.0,58482.0,2.35706479]
[1723719743128,0.000823,58483.0,58482.0,2.53448273]
[1723719743332,0.000823,58483.0,58482.0,2.45087501]
[1723719743541,0.000823,58483.0,58482.0,2.47522134]
[1723719744361,0.000823,58483.0,58482.0,2.4241708]
[1723719744671,0.000823,58483.0,58482.0,2.4381708]
[1723719746571,0.000823,58483.0,58482.0,2.43817133]
[1723719749130,0.000823,58483.0,58482.0,2.43475873]
[1723719749752,0.061523,58483.0,58482.0,2.42075873]
[1723719749949,0.061523,58483.0,58482.0,2.40675873]
[1723719750156,0.061523,58483.0,58482.0,2.24334026]
[1723719750352,0.000823,58483.0,58482.0,2.05378577]
[1723719750779,0.000823,58483.0,58482.0,1.89035526]
[1723719751004,0.000823,58483.0,58482.0,1.87835526]
[1723719751347,0.000823,58483.0,58482.0,1.89035526]
[1723719751554,0.000823,58483.0,58482.0,2.06978781]
[1723719752134,0.000823,58483.0,58482.0,2.49677281]
[1723719752446,0.000823,58483.0,58482.0,2.43477281]
[1723719753879,0.000823,58483.0,58482.0,2.4347675]
[1723719754734,0.142823,58483.0,58482.0,1.54837026]
[1723719754896,0.142823,58483.0,58482.0,1.51411026]
[1723719755253,0.142823,58483.0,58482.0,1.84574893]
[1723719755665,0.142823,58483.0,58482.0,2.02318601]
[1723719755858,0.142823,58483.0,58482.0,1.84574893]
[1723719756258,0.142823,58483.0,58482.0,1.83174893]
[1723719756459,0.142823,58483.0,58482.0,2.00918735]
[1723719756666,0.142823,58483.0,58482.0,1.84574893]
[1723719756860,0.142823,58483.0,58482.0,1.81774893]
[1723719757209,0.142823,58483.0,58482.0,1.84574893]
[1723719757561,0.142823,58483.0,58482.0,1.83174893]
[1723719757962,0.142823,58483.0,58482.0,1.84574893]
[1723719759532,0.142823,58483.0,58482.0,2.02318957]
[1723719759660,0.142823,58483.0,58482.0,2.02518957]
[1723719761455,0.142823,58483.0,58482.0,2.02518954]
[1723719761587,0.000823,58483.0,58482.0,2.02518954]
[1723719761987,0.000823,58483.0,58482.0,2.43357454]
[1723719762187,0.000823,58483.0,58482.0,2.50504687]
[1723719762990,0.000823,58483.0,58482.0,2.47704687]
[1723719763185,0.000823,58483.0,58482.0,2.51130687]
[1723719763433,0.000823,58483.0,58482.0,2.53930687]
[1723719763631,0.000823,58483.0,58482.0,2.52530687]
[1723719763847,0.000823,58483.0,58482.0,2.47683454]
[1723719764251,1e-06,58483.0,58482.0,2.49083454]
[1723719764457,1e-06,58483.0,58482.0,2.47683454]
[1723719764661,0.0818,58492.0,58491.0,1.880626]
[1723719764876,0.0818,58492.0,58491.0,2.35276764]
[1723719765076,0.0818,58492.0,58491.0,2.45476764]
[1723719765283,0.0818,58492.0,58491.0,2.63218432]
[1723719765490,0.081223,58496.0,58495.0,1.54059]
[1723719765695,0.000823,58496.0,58495.0,1.98956122]
[1723719765893,0.000823,58496.0,58495.0,1.99473853]
[1723719766737,0.000823,58496.0,58495.0,1.81732185]
[1723719766929,0.000823,58496.0,58495.0,1.99472165]
[1723719767139,0.000823,58496.0,58495.0,1.83132185]
[1723719767339,0.000823,58496.0,58495.0,2.01072184]
[1723719767815,0.081023,58496.0,58495.0,2.02272184]
[1723719768016,0.142623,58496.0,58495.0,1.84532185]
[1723719768838,0.142623,58496.0,58495.0,1.85575794]
[1723719770038,0.081023,58496.0,58495.0,1.85575794]
[1723719770236,0.000823,58496.0,58495.0,1.85575794]
[1723719770437,0.000823,58496.0,58495.0,2.19766694]
[1723719770831,0.000823,58496.0,58495.0,2.37506658]
[1723719771005,0.000823,58496.0,58495.0,2.37706658]
[1723719771223,0.000823,58499.0,58498.0,1.882406]
[1723719771448,0.000823,58499.0,58498.0,2.63190264]
[1723719771647,0.000823,58499.0,58498.0,2.62990264]
[1723719771848,0.000823,58499.0,58498.0,2.28801064]
[1723719772167,0.000823,58499.0,58498.0,2.62990264]
[1723719772790,0.000823,58499.0,58498.0,2.64390264]
[1723719773722,0.000823,58499.0,58498.0,2.02261064]
[1723719773723,0.145523,58499.0,58498.0,2.02261064]
[1723719773921,0.145523,58499.0,58498.0,1.845211]
[1723719774422,0.145523,58499.0,58498.0,1.503319]
[1723719775162,0.145523,58499.0,58498.0,1.489319]
[1723719775368,0.145523,58499.0,58498.0,1.475319]
[1723719775765,0.145523,58499.0,58498.0,1.489319]
[1723719776594,0.145523,58499.0,58498.0,1.503319]
[1723719776950,0.145523,58499.0,58498.0,1.403319]
[1723719777718,0.145523,58499.0,58498.0,0.20608846]
[1723719777877,0.316466,58499.0,58498.0,0.03514246]
[1723719778314,0.145523,58499.0,58498.0,0.028]
[1723719778518,0.145523,58499.0,58498.0,0.53394339]
[1723719778728,0.145523,58499.0,58498.0,0.87583539]
[1723719779238,0.145523,58499.0,58498.0,0.86183539]
[1723719779440,0.145523,58499.0,58498.0,0.17805139]
[1723719779638,0.145523,58499.0,58498.0,0.19205139]
[1723719779852,0.145523,58499.0,58498.0,0.00710539]
[1723719780060,0.000823,58499.0,58498.0,0.170946]
[1723719780243,0.141623,58499.0,58498.0,0.19106518]
[1723719780446,0.141623,58499.0,58498.0,0.54695718]
[1723719780864,0.141623,58499.0,58498.0,0.20506518]
[1723719781544,0.141623,58499.0,58498.0,0.19106518]
[1723719781898,0.141623,58499.0,58498.0,0.54495718]
[1723719782109,0.141623,58499.0,58498.0,0.88684918]
[1723719784316,0.141623,58499.0,58498.0,0.03211918]
[1723719784505,0.141623,58499.0,58498.0,0.20306518]
[1723719786368,0.312566,58499.0,58498.0,0.03211918]
[1723719786568,0.996338,58499.0,58498.0,0.03211918]
[1723719786795,0.312566,58499.0,58498.0,0.03211918]
[1723719787025,0.312566,58499.0,58498.0,0.025]
[1723719787226,0.654452,58499.0,58498.0,0.025]
[1723719787361,0.654452,58499.0,58498.0,0.03212163]
[1723719787560,0.654452,58499.0,58498.0,0.00712163]
[1723719787766,0.1421,58495.0,58492.0,0.341923]
[1723719788100,0.1453,58494.0,58493.0,0.17809386]
[1723719789827,0.1453,58494.0,58493.0,0.52801486]
[1723719790129,0.1453,58494.0,58493.0,0.17809386]
[1723719790341,0.1453,58494.0,58493.0,0.00713386]
[1723719790511,0.1453,58494.0,58493.0,0.19309386]
[1723719790711,0.1453,58494.0,58493.0,0.008]
[1723719790936,0.1453,58494.0,58493.0,0.00713386]
[1723719791215,0.1453,58494.0,58493.0,0.18409386]
[1723719791417,0.1453,58494.0,58493.0,0.19009386]
[1723719791914,0.1453,58494.0,58493.0,0.53201486]
[1723719792092,0.1453,58494.0,58493.0,0.01913386]
[1723719792655,0.1453,58494.0,58493.0,0.02003916]
[1723719792863,1.05124886,58494.0,58493.0,0.0129053]
[1723719793071,1.05124886,58494.0,58493.0,0.0069053]
[1723719793072,0.70933386,58494.0,58493.0,0.0069053]
[1723719793317,0.70933386,58494.0,58493.0,0.0009053]
[1723719793318,0.658172,58494.0,58493.0,0.0009053]
[1723719793508,0.73491479,58494.0,58493.0,0.0059053]
[1723719793719,0.73491479,58494.0,58493.0,0.0109053]
[1723719793970,1.07682979,58494.0,58493.0,0.0109053]
[1723719794154,1.50792502,58494.0,58493.0,0.0009053]
[1723719794354,1.82310213,58494.0,58493.0,0.0029053]
[1723719794514,1.82310213,58494.0,58493.0,0.0049053]
[1723719795119,1.41705262,58494.0,58493.0,0.0049053]
[1723719795319,0.76053422,58494.0,58493.0,0.0049053]
[1723719795521,0.658172,58494.0,58493.0,0.0049053]
[1723719795723,0.73494049,58494.0,58493.0,0.0049053]
[1723719795924,0.22206849,58494.0,58493.0,0.0049053]
[1723719796125,0.1453,58494.0,58493.0,0.5177863]
[1723719796373,0.1453,58494.0,58493.0,0.86685518]
[1723719796544,0.081,58494.0,58493.0,1.20877618]
[1723719796927,0.0617,58498.0,58497.0,0.854742]
[1723719797412,0.0617,58498.0,58497.0,1.2037771]
[1723719797629,0.0617,58498.0,58497.0,0.8618801]
[1723719799219,0.0617,58498.0,58497.0,0.8648801]
[1723719799719,0.0617,58498.0,58497.0,0.8678801]
[1723719801299,0.0617,58498.0,58497.0,0.5259831]
[1723719801507,0.0617,58498.0,58497.0,0.0131381]
[1723719801508,0.654238,58498.0,58497.0,0.0131381]
[1723719801714,1.04729239,58498.0,58497.0,0.0131381]
[1723719801991,1.04729239,58498.0,58497.0,0.006]
[1723719802178,0.99613,58498.0,58497.0,0.006]
[1723719802328,1.338022,58498.0,58497.0,0.006]
[1723719802529,1.75656982,58498.0,58497.0,0.006]
[1723719802738,1.75656982,58498.0,58497.0,0.003]
[1723719802739,1.65424504,58498.0,58497.0,0.003]
[1723719803133,1.65424504,58498.0,58493.0,0.0009053]
[1723719803134,0.994687,58494.0,58493.0,0.0009053]
[1723719803535,0.652772,58494.0,58493.0,0.0009053]
[1723719804336,0.652772,58494.0,58493.0,0.0049053]
[1723719807088,0.1399,58494.0,58493.0,0.0049053]
[1723719807297,0.1399,58494.0,58493.0,0.5177863]
[1723719807502,0.1399,58494.0,58493.0,0.52495623]
[1723719807712,0.1399,58494.0,58493.0,0.18303523]
[1723719808842,0.0764,58497.0,58496.0,0.170951]
[1723719809069,0.066723,58499.0,58496.0,0.170951]
[1723719809070,0.000823,58499.0,58498.0,0.85473]
[1723719809248,0.000823,58499.0,58498.0,1.196622]
[1723719809447,0.000823,58499.0,58498.0,1.20377975]
[1723719811932,0.000823,58499.0,58498.0,1.21377975]
[1723719813836,0.000823,58499.0,58498.0,1.22477975]
[1723719815193,0.000823,58499.0,58498.0,1.21477975]
[1723719815559,0.000823,58499.0,58498.0,1.21377975]
[1723719817055,0.000823,58499.0,58498.0,1.22577975]
[1723719817192,0.000823,58499.0,58498.0,1.21377975]
[1723719817392,0.000823,58499.0,58498.0,1.20377975]
[1723719817618,0.000823,58499.0,58498.0,1.22677975]
[1723719818235,0.000823,58499.0,58498.0,1.21577975]
[1723719818556,0.000823,58499.0,58498.0,1.22677975]
[1723719823945,0.000823,58499.0,58498.0,1.39833429]
[1723719824310,0.000823,58499.0,58498.0,1.38733429]
[1723719824518,0.000823,58499.0,58498.0,1.39833429]
[1723719824748,0.000823,58499.0,58498.0,1.38633429]
[1723719824947,0.000823,58499.0,58498.0,1.54153429]
[1723719825158,0.000823,58499.0,58498.0,1.53053429]
[1723719825336,0.000823,58499.0,58498.0,1.51853429]
[1723719825550,0.000823,58499.0,58498.0,1.53053429]
[1723719826837,0.000823,58499.0,58498.0,1.87242629]
[1723719827044,0.000823,58499.0,58498.0,1.88542629]
[1723719827449,0.000823,58499.0,58498.0,2.22731829]
[1723719827650,0.000823,58499.0,58498.0,2.49270004]